Cogmind - Beta 13 @@@ ROGUE MODE // 2024.04.23 @ 23:33:58 Player: YBOUZL Result: Destroyed by Y-54 Guardian with Gatling Laser Performance ------------- Evolutions (3) 1500 Regions Visited (5) 1000 Robots Destroyed (69) 345 Value Destroyed (2261) 2261 Prototype IDs (3) 60 Alien Tech Used (0) 0 Bonus (21) 21 TOTAL SCORE: 5187 Bonus ------- High Alert Combat Kills 21 Cogmind --------- Core Integrity 0/700 Matter 157/300 Energy 185/315 System Corruption 5% Temperature Cool (6) Movement Hovering (120) Ox1 Location -7/Lower Caves Parts ------- > --- POWER (3) -------- Neutrino Core > --- PROPULSION (4) --- Gravmag System > --- UTILITY (3) ------ (None) > --- WEAPON (3) ------- (None) > --- INVENTORY (5) ---- Improved Heat Sink Gatling Laser Heavy Particle Cannon Minigun Gauss Cannon Peak State ------------ > --- POWER ------------ Light Nuclear Core Micro Nuclear Core Light Angular Momentum Engine > --- PROPULSION ------- Aluminum Leg Carbon-fiber Leg Carbon-fiber Leg > --- UTILITY ---------- Matter Filter Matter Filter Matter Filter > --- WEAPON ----------- Field Laser Advanced Assault Cannon Advanced Assault Cannon > --- INVENTORY -------- High-powered Shotgun Advanced Assault Cannon Advanced Assault Cannon [Rating: 43] Favorites ----------- Power Light Nuclear Core Engine Light Deuterium Engine Power Core Light Nuclear Core Propulsion Aluminum Leg Leg Aluminum Leg Hover Unit Gravmag System Flight Unit Cooled VTOL Module Utility Improved Heat Sink Device Improved Heat Sink Storage Small Storage Unit Protection Improved Light Armor Plating Weapon Advanced Beam Cannon Energy Gun Plasma Rifle Energy Cannon Advanced Beam Cannon Ballistic Gun Heavy Assault Rifle Ballistic Cannon Advanced Assault Cannon Launcher Rocket Launcher Special Weapon Remote Datajack Build | -11 -10 -9 -8 -7 -7 ------- Run | Yrd Mat Mat Mat Fac Low Slots Evolved 6 | . . 2 2 2 . Power 2 | . . . 1 1 . Propulsion 2 | . . 2 . . . Utility 1 | . . . . 1 . Weapon 1 | . . . 1 . . Parts Attached 96 | 6 10 8 22 39 11 Power 25 | 1 3 2 9 5 5 Engine 11 | 1 1 1 3 4 1 Core 14 | . 2 1 6 1 4 Reactor . | . . . . . . Propulsion 20 | 2 2 4 6 6 . Treads . | . . . . . . Leg 17 | 2 2 4 6 3 . Wheel . | . . . . . . Hover 1 | . . . . 1 . Flight 2 | . . . . 2 . Utility 17 | 1 1 1 1 11 2 Device 12 | . 1 1 1 8 1 Storage 2 | 1 . . . 1 . Processor . | . . . . . . Hackware . | . . . . . . Protection 3 | . . . . 2 1 Artifact . | . . . . . . Weapon 34 | 2 4 1 6 17 4 Energy Gun 13 | 1 2 . 4 3 3 Energy Cannon 4 | . 1 1 1 . 1 Ballistic Gun 4 | 1 1 . . 2 . Ballistic Cannon 9 | . . . . 9 . Launcher 2 | . . . 1 1 . Special Weapon 2 | . . . . 2 . Impact Weapon . | . . . . . . Slashing Weapon . | . . . . . . Piercing Weapon . | . . . . . . Special Melee Weapon . | . . . . . . Unidentified Prototypes 3 | . 1 . . 2 . Parts Lost 42 | . . 2 5 33 2 Power 8 | . . . 1 7 . Propulsion 10 | . . 1 2 7 . Utility 10 | . . . 1 8 1 Weapon 14 | . . 1 1 11 1 Highest Loss Streak 17 | . . 2 2 17 1 To Critical Strikes . | . . . . . . Average Slot Usage (%) 60 | . 92 97 94 36 40 Engine 1 | . 3 . 2 2 1 Core 8 | . 10 11 14 3 9 Leg 16 | . 28 44 34 7 . Hover 2 | . . . . . 7 Device 6 | . 6 9 9 5 5 Storage 4 | . 14 11 6 . . Protection 2 | . . . . . 7 Energy Gun 5 | . 8 . 9 4 7 Energy Cannon 4 | . 7 14 15 . . Ballistic Gun 2 | . 11 7 . . . Ballistic Cannon 2 | . . . . 8 . Naked Turns 40 | . . . . 40 . Heaviest Build 44 | 14 18 19 30 44 38 Greatest Support 55 | 20 26 46 55 55 9 Greatest Overweight (x) 4 | 1 . . 1 4 4 Average Overweight (x) . | . . . . . 2 Largest Inventory Capacity 8 | 8 8 8 8 5 5 Average Capacity 6 | 6 8 8 7 5 5 Most Carried 8 | 5 8 8 8 5 5 Average Carried 4 | 2 5 7 6 2 4 Final Capacity 8 | 8 8 8 5 5 5 Final Carried 8 | 1 8 7 5 5 5 Class Distribution -------------------- 74% | Mutant 13% | Gunner 10% | Scavenger-Gunner Dominant Class ---------------- Mutant | -10/Materials Mutant | -9/Materials Scavenger-Gunner | -8/Materials Mutant | -7/Factory Mutant | -7/Lower Caves Resources | -11 -10 -9 -8 -7 -7 ----------- Run | Yrd Mat Mat Mat Fac Low Matter Collected 1681 | 193 194 185 227 645 237 Remotely . | . . . . . . Salvage Created 2165 | . 194 545 527 777 122 Parts 144 | . 13 44 39 41 7 Haulers Intercepted . | . . . . . . Recyclers Shooed . | . . . . . . Parts Field Recycled . | . . . . . . Retrieved Matter . | . . . . . . Parts Self-Destructed 7 | . . . . . 7 Prevented . | . . . . . . Kills | -11 -10 -9 -8 -7 -7 ------- Run | Yrd Mat Mat Mat Fac Low Combat Hostiles Destroyed 53 | . 4 13 11 22 3 Guns 16 | . 2 3 6 2 3 Cannons 30 | . 2 10 3 15 . AOE 7 | . . . 2 5 . Classes Destroyed 11 | . 2 3 4 2 . Worker 2 | . . . 2 . . Builder 5 | . . . 3 2 . Recycler 4 | . . . 1 3 . Operator 1 | . 1 . . . . Watcher 4 | . . 1 1 2 . Swarmer 17 | . . 3 4 7 3 Grunt 24 | . 4 5 5 10 . Duelist 1 | . . . . 1 . Sentry 8 | . . 5 1 2 . Hunter 1 | . . . 1 . . Programmer 2 | . . . . 2 . Best Kill Streak 8 | . 2 3 8 5 3 Combat Bots Only 4 | . 2 3 4 3 3 Max Kills in Single Turn 3 | . 1 2 3 2 1 Gunslinging 1 | . . . 1 . . Exploded 2 | . . . 1 2 . Melee . | . . . . . . Uniques/NPCs Destroyed . | . . . . . . Combat | -11 -10 -9 -8 -7 -7 -------- Run | Yrd Mat Mat Mat Fac Low Hostile Shots Fired 511 | . 25 91 46 294 55 Missed 156 | . 7 35 12 78 24 Damage Taken 5104 | . 230 667 616 3223 368 Core 952 | . 61 81 109 664 37 Absorbed by Shields . | . . . . . . Ignored by Resistances 4 | . . . . 4 . Regen/Repaired (Parts) 37 | . . 37 . . . Core Remaining (%) 83 | 100 75 79 80 . . Volleys Fired 189 | . 16 53 24 90 6 Largest 3 | . 2 2 3 3 3 Hottest 204 | . 91 136 204 159 160 Shots Fired 374 | . 32 91 71 169 11 Gun 145 | . 22 37 24 51 11 Cannon 219 | . 10 54 41 114 . Launcher 9 | . . . 6 3 . Special 1 | . . . . 1 . Kinetic 176 | . 16 37 . 118 5 Thermal 147 | . 16 54 41 31 5 Explosive 9 | . . . 6 3 . Electromagnetic 41 | . . . 24 16 1 Robot Hit Streak 12 | . 12 8 4 10 3 Robot Miss Streak 8 | . 1 8 3 6 2 Penetration Max . | . . . . . . Secondary Targets 3 | . . . 1 . 2 Max Gunslinging Chain 1 | . . . 1 . 1 Shots Hit Robots 210 | . 24 50 36 93 7 Core Hits 103 | . 8 21 22 46 6 Critical Kills . | . . . . . . Critical Parts Destroyed 1 | . . . . 1 . Critical Strikes 6 | . . . . 6 . Burn 3 | . . . . 3 . Destroy 1 | . . . . 1 . Blast 2 | . . . . 2 . Melee Attacks . | . . . . . . Impact . | . . . . . . Slashing . | . . . . . . Piercing . | . . . . . . Sneak Attacks . | . . . . . . Combat Hostiles . | . . . . . . Follow-up Attacks . | . . . . . . Damage Inflicted 5579 | . 342 964 1201 2933 139 Guns 1459 | . 219 389 260 452 139 Cannons 2915 | . 123 571 390 1831 . Explosions 1194 | . . . 551 643 . Melee . | . . . . . . Ramming 11 | . . 4 . 7 . Kinetic 2431 | . 145 389 . 1864 33 Thermal 1732 | . 197 571 503 364 97 Explosive 1019 | . . . 438 581 . Electromagnetic 386 | . . . 260 117 9 Impact . | . . . . . . Slashing . | . . . . . . Piercing . | . . . . . . Highest Corruption 5 | . 1 . . 5 5 Average Corruption 4 | . 1 . . 3 5 Corruption Purged . | . . . . . . Corruption Blocked . | . . . . . . Effects 49 | . 3 . . 17 29 Message Errors 10 | . . . . 5 5 Matter Fused 9 | . . . . 3 6 Heat Flow Errors 8 | . 1 . . 4 3 Energy Discharges 7 | . 1 . . 1 5 Parts Rejected 1 | . . . . . 1 Data Loss (minor) 10 | . 1 . . 4 5 Data Loss (major) 2 | . . . . . 2 Alerts 2 | . . . . . 2 Overload Shots . | . . . . . . Overflow Damage 167 | . . . 43 124 . Projectiles 59 | . . . 7 52 . Explosions 108 | . . . 36 72 . Melee . | . . . . . . Knockbacks 29 | . . 1 . 28 . Impact 1 | . . 1 . . . Kinetic 24 | . . . . 24 . Secondary 4 | . . . . 4 . Self-Inflicted Damage 176 | . . . 13 163 . Shots 4 | . . . 1 3 . Rammed . | . . . . . . Targets Rammed 5 | . . 1 . 4 . Kicked 5 | . . 1 . 4 . Crushed . | . . . . . . Highest Temperature 559 | . 240 450 559 504 257 Average Temperature 141 | . 49 157 160 157 97 Received Heat Transfer 1512 | . 120 354 198 798 42 Effects 24 | . . 4 14 6 . Shutdowns 7 | . . 1 2 4 . Energy Bleed 2 | . . . 2 . . Interference 7 | . . 2 3 2 . Short Circuit 3 | . . . 3 . . Damage (minor) 1 | . . 1 . . . Damage (major) 4 | . . . 4 . . Siege Activations . | . . . . . . Robots Corrupted . | . . . . . . Combat Hostiles . | . . . . . . Parts Fried 1 | . . . . 1 . Impact Corruptions . | . . . . . . Robots Melted . | . . . . . . Combat Hostiles . | . . . . . . Parts Melted 4 | . . 4 . . . Heat Transferred 3523 | . 444 1036 853 965 225 Parts Sabotaged . | . . . . . . Parts Stolen . | . . . . . . Parts Stripped . | . . . . . . Power Chain Reactions 2 | . . . 1 1 . Alert | -11 -10 -9 -8 -7 -7 ------- Run | Yrd Mat Mat Mat Fac Low Peak Influence 515 | . 69 397 515 393 . Initial 138 | . . 28 129 138 . Average 204 | . 38 221 266 229 . Maximum Alert Level 2 | . . 1 2 1 . Low Security (%) 45 | 100 100 40 41 31 . Level 1 52 | . . 59 41 68 . Level 2 2 | . . . 16 . . Level 3 . | . . . . . . Level 4 . | . . . . . . Level 5 . | . . . . . . High Security . | . . . . . . Max Security . | . . . . . . Squads Dispatched 18 | . 2 2 4 10 . Investigation 4 | . 1 1 . 2 . Extermination 3 | . . . . 3 . Reinforcement 8 | . 1 1 4 2 . Assault . | . . . . . . Garrison 3 | . . . . 3 . Intercept . | . . . . . . Searches Triggered . | . . . . . . Construction Impeded 3 | . . . 1 2 . Haulers Reinforced . | . . . . . . Active Scanning Responses . | . . . . . . Cargo Convoy Interrupts . | . . . . . . Stealth | -11 -10 -9 -8 -7 -7 --------- Run | Yrd Mat Mat Mat Fac Low Distress Signals 3 | . . 1 . 2 . Communications Jammed . | . . . . . . Distress Signals . | . . . . . . Times Spotted 83 | . 7 18 19 35 4 Peak Tracking Total 7 | . 2 4 5 7 3 Tactical Retreats 7 | . . 1 . 6 . Traps | -11 -10 -9 -8 -7 -7 ------- Run | Yrd Mat Mat Mat Fac Low Traps Triggered 2 | . 1 . . 1 . Indirectly . | . . . . . . Trap Hack Attempts . | . . . . . . Triggered . | . . . . . . Disarmed . | . . . . . . Reprogrammed . | . . . . . . Reused . | . . . . . . Traps Extracted . | . . . . . . Installed . | . . . . . . Triggered . | . . . . . . Machines | -11 -10 -9 -8 -7 -7 ---------- Run | Yrd Mat Mat Mat Fac Low Machines Disabled 12 | . . 1 2 9 . Max in Single Turn 2 | . . 1 1 2 . Machines Repaired . | . . . . . . Machines Dismantled . | . . . . . . Machines Sabotaged . | . . . . . . Overloaded Fab Kills . | . . . . . . Hacking | -11 -10 -9 -8 -7 -7 --------- Run | Yrd Mat Mat Mat Fac Low Machines Accessed 15 | . 3 6 . 5 1 Terminals 8 | . 2 3 . 3 . Fabricators 1 | . . . . 1 . Repair Stations 1 | . . 1 . . . Recycling Units 3 | . 1 1 . 1 . Scanalyzers 1 | . . 1 . . . Garrison Access . | . . . . . . Total Hacks 40 | . 9 23 . 7 1 Successful 20 | . 5 10 . 4 1 Failed 20 | . 4 13 . 3 . Catastrophic 3 | . . 2 . 1 . Database Lockouts . | . . . . . . Manual . | . . . . . . Terminals 22 | . 5 13 . 4 . Fabricators 2 | . . . . 2 . Repair Stations 5 | . . 5 . . . Recycling Units 8 | . 4 3 . 1 . Scanalyzers 2 | . . 2 . . . Garrison Access . | . . . . . . Terminal Hacks 10 | . 4 4 . 1 1 Robot Analysis 2 | . 1 1 . . . Open Door 1 | . . . . . 1 Open DSF 1 | . . . . 1 . Repair Station Index 1 | . . 1 . . . Unreport Threat 1 | . 1 . . . . Locate Traps 2 | . 2 . . . . Dispatch Records 1 | . . 1 . . . Maintenance Status 1 | . . 1 . . . Fabricator Hacks 2 | . . . . 2 . Load Schematic 1 | . . . . 1 . Build 1 | . . . . 1 . Repair Station Hacks 2 | . . 2 . . . Scan Component 1 | . . 1 . . . Repair 1 | . . 1 . . . Recycling Unit Hacks 4 | . 1 2 . 1 . Report Inventory 2 | . . 1 . 1 . Retrieve Matter 1 | . . 1 . . . Retrieve Components 1 | . 1 . . . . Scanalyzer 2 | . . 2 . . . Insert Component 1 | . . 1 . . . Analyze 1 | . . 1 . . . Garrison Access Hacks . | . . . . . . Unauthorized Hacks . | . . . . . . Terminals . | . . . . . . Fabricators . | . . . . . . Repair Stations . | . . . . . . Recycling Units . | . . . . . . Scanalyzers . | . . . . . . Garrison Access . | . . . . . . Data Cores Recovered 1 | . 1 . . . . Used 1 | . 1 . . . . Hacking Detections 12 | . 3 6 . 3 . Full Trace Events 7 | . 2 3 . 2 . Feedback Events . | . . . . . . Feedback Blocked . | . . . . . . Robot Schematics Acquired . | . . . . . . Robots Built . | . . . . . . Authchips . | . . . . . . Time . | . . . . . . Total Robot Build Rating . | . . . . . . Part Schematics Acquired 1 | . . 1 . . . Parts Built 1 | . . . . 1 . Authchips . | . . . . . . Time 62 | . . . . 62 . Total Part Build Rating 2 | . . . . 2 . Parts Repaired 1 | . . 1 . . . Time 38 | . . 38 . . . Parts Recycled . | . . . . . . Recycled Matter . | . . . . . . Retrieved Matter 15 | . . 15 . . . Retrieved Components 4 | . 4 . . . . Parts Scanalyzed 1 | . . 1 . . . Part Schematics Acquired 1 | . . 1 . . . Parts Damaged . | . . . . . . Bothacking | -11 -10 -9 -8 -7 -7 ------------ Run | Yrd Mat Mat Mat Fac Low Used RIF Installer . | . . . . . . Robots Hacked 1 | . . . . 1 . Non-combat . | . . . . . . Combat 1 | . . . . 1 . Robot Hacks Applied 1 | . . . . 1 . parse_system 1 | . . . . 1 . Relay Couplers Released . | . . . . . . Fabnet Peak Effective % . | . . . . . . Robots Rewired . | . . . . . . Allies Hacked . | . . . . . . Hacks Repelled . | . . . . . . Allies | -11 -10 -9 -8 -7 -7 -------- Run | Yrd Mat Mat Mat Fac Low Total Allies . | . . . . . . Largest Group . | . . . . . . Highest-Rated Group . | . . . . . . Highest-Rated Ally . | . . . . . . Total Orders . | . . . . . . Ally Attacks . | . . . . . . Total Damage . | . . . . . . Kills . | . . . . . . Allies Corrupted . | . . . . . . Allies Melted . | . . . . . . Intel | -11 -10 -9 -8 -7 -7 ------- Run | Yrd Mat Mat Mat Fac Low Robot Analysis Total 2 | . 1 1 . . . Derelict Logs Recovered 1 | . . . . . 1 Drone Launches . | . . . . . . Drone Recoveries . | . . . . . . Exploration | -11 -10 -9 -8 -7 -7 ------------- Run | Yrd Mat Mat Mat Fac Low Turns Passed 3908 | 54 365 666 434 1284 1105 Spaces Moved 2269 | 48 242 405 256 755 563 Core 426 | 24 . . . 344 58 Treads . | . . . . . . Legs 1217 | 24 242 405 256 290 . Wheels . | . . . . . . Hover 600 | . . . . 95 505 Flight 26 | . . . . 26 . Fastest Speed 35 | 50 120 120 120 35 60 Average Speed 136 | 89 120 120 121 119 188 Slowest Speed 300 | 120 120 120 190 250 300 Overloaded Moves . | . . . . . . Propulsion Burnouts . | . . . . . . Robots Hopped . | . . . . . . Cave-ins Triggered . | . . . . . . Exploration Rate (%) 32 | 3 38 37 26 22 71 Regions Visited 5 Branch Regions 1 Pre-discovered Areas . | . . . . . . Known Exits Taken . | . . . . . . Unknown Exits Taken 5 | 1 1 1 1 1 . Scrap Searched 2 | . . . . . 2 Spaces Dug . | . . . . . . Terrain Destroyed 124 | . . . 51 73 . Melee . | . . . . . . Projectile 18 | . . . . 18 . AOE 106 | . . . 51 55 . Terrain Rammed . | . . . . . . Walls Destroyed . | . . . . . . Machines Disabled . | . . . . . . Actions | -11 -10 -9 -8 -7 -7 --------- Run | Yrd Mat Mat Mat Fac Low Total 2757 | 58 282 494 328 996 599 Wait 97 | . . 18 . 72 7 Move 2264 | 47 241 404 255 754 563 Hop . | . . . . . . Pick Up 63 | 5 11 7 10 27 3 Fast Attach 16 | 2 1 . 5 3 5 Attach 55 | 4 1 5 4 35 6 Detach 11 | . . . . 8 3 Swap 25 | . 8 3 13 1 . Drop 32 | . 4 3 17 2 6 Fire 189 | . 16 53 24 90 6 Melee . | . . . . . . Ram . | . . . . . . Kick 5 | . . 1 . 4 . Crush . | . . . . . . Escape Stasis . | . . . . . . Rewire . | . . . . . . Trap . | . . . . . . Miscellaneous . | . . . . . . Route ------- -11/Scrapyard -10/Materials -9/Materials -8/Materials -7/Factory -7/Lower Caves History --------- Turn | Location | Event 19 | -11/Scrapyard | Discovered new exit (range 16) 55 | -11/Scrapyard | Entered Materials 306 | -10/Materials | Build established: Mutant 406 | -10/Materials | Discovered new exit (range 8) 420 | -10/Materials | Entered another Materials area 420 | -9/Materials | Evolved 2 slots: Propulsion x2 861 | -9/Materials | Repaired Imp. Heat Sink 1050 | -9/Materials | Discovered new exit (range 16) 1086 | -9/Materials | Entered another Materials area 1086 | -8/Materials | Evolved 2 slots: Power x1, Weapon x1 1475 | -8/Materials | Discovered new exit (range 16) 1520 | -8/Materials | Entered Factory 1520 | -7/Factory | Evolved 2 slots: Power x1, Utility x1 1615 | -7/Factory | Lost 7 parts (2p2n2u1w) 2013 | -7/Factory | Garrison activated, responded to threat 2151 | -7/Factory | Lost 17 parts (3p5n5u4w) 2418 | -7/Factory | Core integrity fell below 50% 2441 | -7/Factory | Fabricated Rocket Launcher? 2596 | -7/Factory | Lost 4 parts (1p3w) 2671 | -7/Factory | Core integrity fell below 20% 2789 | -7/Factory | Discovered new exit (range 16) 2804 | -7/Factory | Entered Lower Caves 3076 | -7/Lower Caves | Learned Factory stockpile data 3884 | -7/Lower Caves | Attracted the attention of an 0b10 checkpoint 3909 | -7/Lower Caves | Destroyed by Y-54 Guardian with Gatling Laser Last Messages --------------- System corrupted: IFF burst signal emitted. System corrupted: Heat flow error (+269). REZ 7=VYRWGMB4CK|BTOFZL System corrupted: Component data lost. System corrupted: Heat flow error (+234). System corrupted: Energy discharge (-116). System corrupted: Substantial component data lost. System corrupted: Energy discharge (-185). System corrupted: Energy discharge (-169). System corrupted: Heat flow error (+230). System corrupted: Component data lost. System corrupted: Matter fused (-8). Y-54 Guardian: "INTERCEPTING UNREGISTERED DERELICT." Dropped Neutrino Core. Acquired Neutrino Core. Matter Filter destroyed. Dropped Imp. Light Armor Plating. Dropped Plasma Rifle. Map ----- +----------------------------------------------------+ | ????# # ##????????????????????? | | ?????????# #????????????????????? | | ??????#### # ### #???????????????????? | | ????### ## # ## #???????????????????? | | ???## ## #### ## ##???????????????????? | | ##?# #### ### #### #????????????????????? | | ??# #### #####??## #????????????????????? | | ???# # ## #???????## #???????????????????? | | ???## ##????????### ??????????????????? | | ????## ###????????????# ?????????????????? | | ?????## #??#????????????# ????????????????? | | ###???## # #????????????? ????????????????? | | # #???## # # #????????????# ????????????????? | | ##### #?????????#???# ?????????????????? | | ! # # # #??????## #??????????????????????? | | ! !# #????## ??????????????????????? | | #! ##### # ##### ??????????????????????? | | #### #????# ??????????????????????? | | ???# #????### ??????????????????????? | | ?### #????????## #??????????????????????? | | # ## # #?????????# #??????????? ??????????? | | ## #?????????# #????????? ?????????? | | # ## ##??????????# #?????## ?????????? | | # #?###????????????# ##### #?????????? | | #?????????????????# #?????????? | | #????????????#????# @ #?????????? | | ##???###???? #??### ##????????? | | # ##### ##### #??# ## ##???????? | | #??## *#??? ???????? | | #???# [!#???? ???????? | | ###### ##### #??? ??????? | | # ##????### #### Y##? #????????? | | #???????## ##?# ## #????????? | | ##????????# #### #???????? | | #??????????# #??????? | | ???????????# #?????? | | ???????????## ### ?????? | | ????????????#####?######### #### ??????? | | ??????????????????????????###### ##????????????? | | ????????????????????????????????####?????????????? | | ?????????????????????????????????????????????????? | | ?????????????????????????????????????????????????? | | ?????????????????????????????????????????????????? | | ?????????????????????????????????????????????????? | | ?????????????????????????????????????????????????? | | ?????????????????????????????????????????????????? | | ?????????????????????????????????????????????????? | | ?????????????????????????????????????????????????? | | ?????????????????????????????????????????????????? | | ?????????????????????????????????????????????????? | +----------------------------------------------------+ Best States ------------- Heat Dissipation 62 Energy Generation 37 Energy Capacity 530 Matter Stores 300 Matter Capacity 450 Sight Range 16 Terrain Scan Density 10 Jamming Range 12 Armor Coverage 150 Resistance: TH 10 Evasion (%) 63 Matter Filtering 45 Item Schematics ----------------- Rocket Launcher | -9/Materials | Scanalyzed Robot Schematics ------------------ None Fabricated ------------ Rocket Launcher | x1 | -7/Factory Alien Tech Used ----------------- None Achievements -------------- Dynamic Key Troublemaker Challenges ------------ None Game ------ Seed FissionSurveybotPerforator Manual? 0 Play Time 00:48:52 Cumulative 6.5 hours Start 2024.04.21 @ 21:23:31 End 2024.04.23 @ 23:33:58 Sessions 4 Manual Loads 0 Difficulty Rogue Special Mode None Game No. 18 Rogue 18 Adventurer 0 Explorer 0 Win Type - Total 0 Types 0/0/0/0/0/0/0/0/0 Lore% 13 Gallery% 14 Achievement% 12 Wizard Run 0 Options --------- Layout 1 ASCII 0 Keyboard 0 Movement Mouse Keybinds 0 Fullscreen 1 Font 24/Smallcaps Map View 50x35 Zoom Use 0% Tactical HUD 0 Map Filters NONE Filters NONE Steam 1 RUN: 31f5daf5-220f-44f5-a67f-b0f1a4d0e8df